[Event "Panchenko Memorial-A 2021"]
[Site "Chelyabinsk"]
[Date "2021.09.21"]
[Round "10.2"]
[White "Matinian, Nikita"]
[Black "Salemgareev, Tagir"]
[Result "1/2-1/2"]
[ECO "B52"]
[WhiteElo "2436"]
[BlackElo "2463"]
[Annotator "ChessBase"]
[PlyCount "53"]
[EventDate "2021.09.13"]
[EventType "swiss"]
[EventCountry "RUS"]
[SourceTitle "playchess.com"]
[Source "ChessBase"]
[SourceQuality "1"]
[TimeControl "5400+30"]

1. e4 {[%emt 0:00:04]} c5 {[%emt 0:00:26]} 2. Nf3 {[%emt 0:00:05]} d6 {[%emt 0:00:08]} 3. Bb5+ {[%emt 0:00:05]} Bd7 {[%emt 0:00:05]} 4. Bxd7+ {[%emt 0:00:04]} Nxd7 {[%emt 0:00:06]} 5. O-O {[%emt 0:00:43]} Ngf6 {[%emt 0:00:05]} 6. Qe2 {[%emt 0:00:37]} e6 {[%emt 0:00:17]} 7. c3 {[%emt 0:00:07]} Be7 {[%emt 0:00:09]} 8. d4 {[%emt 0:00:11]} O-O {[%emt 0:00:08]} 9. e5 {[%emt 0:00:23]} Ne8 {[%emt 0:00:07]} 10. Bf4 {[%emt 0:01:22]} Rc8 {[%emt 0:05:58]} 11. Rd1 {[%emt 0:00:27]} cxd4 {[%emt 0:11:18]} 12. cxd4 {[%emt 0:00:45]} Nb6 {[%emt 0:00:29]} 13. Nc3 {[%emt 0:00:48]} Nc7 {[%emt 0:00:21]} 14. Ne4 {[%emt 0:10:02]} Ncd5 {[%emt 0:00:46]} 15. Bg5 {[%emt 0:00:22]} Bxg5 {[%emt 0:04:56]} 16. Nfxg5 {[%emt 0:00:43]} h6 {[%emt 0:00:45]} 17. Nf3 {[%emt 0:01:10]} Nf4 {[%emt 0:01:18]} 18. Qb5 {[%emt 0:06:59]} dxe5 {[%emt 0:08:00]} 19. dxe5 {[%emt 0:00:19]} Qe7 {[%emt 0:00:25]} 20. g3 {[%emt 0:07:57]} Ng6 {[%emt 0:01:23]} 21. h4 {[%emt 0:06:52]} Rc4 {[%emt 0:05:21]} 22. Nd6 {[%emt 0:11:39]} Rg4 {[%emt 0:01:00]} 23. Nh2 {[%emt 0:06:11]} Qxh4 {[%emt 0:00:17]} 24. Nxg4 {[%emt 0:00:03]} Qxg4 {[%emt 0:00:06]} 25. Re1 {[%emt 0:00:25]} Nf4 {[%emt 0:15:50]} 26. Re4 {[%emt 0:05:10]} Nbd5 {[%emt 0:00:08]} 27. Qc4 {[%emt 0:05:05]} 1/2-1/2

[Event "Panchenko Memorial-A 2021"]
[Site "Chelyabinsk"]
[Date "2021.09.21"]
[Round "10.8"]
[White "Lintchevski, Daniil"]
[Black "Maiorov, Nikita"]
[Result "1-0"]
[ECO "C45"]
[WhiteElo "2561"]
[BlackElo "2446"]
[Annotator "ChessBase"]
[PlyCount "89"]
[EventDate "2021.09.13"]
[EventType "swiss"]
[EventCountry "RUS"]
[SourceTitle "playchess.com"]
[Source "ChessBase"]
[SourceQuality "1"]
[TimeControl "5400+30"]

1. e4 {[%emt 0:00:10]} e5 {[%emt 0:00:12]} 2. Nf3 {[%emt 0:00:09]} Nc6 {[%emt 0:00:06]} 3. d4 {[%emt 0:01:03]} exd4 {[%emt 0:00:03]} 4. Nxd4 {[%emt 0:00:05]} Bc5 {[%emt 0:04:45]} 5. Nb3 {[%emt 0:00:42]} Bb6 {[%emt 0:03:44]} 6. Nc3 {[%emt 0:00:06]} d6 {[%emt 0:12:43]} 7. Bf4 {[%emt 0:02:09]} a5 {[%emt 0:10:32]} 8. a4 {[%emt 0:10:58]} Nf6 {[%emt 0:12:35]} 9. Qd2 {[%emt 0:03:31]} O-O {[%emt 0:02:28]} 10. O-O-O {[%emt 0:01:14]} Be6 {[%emt 0:04:05]} 11. f3 {[%emt 0:09:16]} Nb4 {[%emt 0:01:35]} 12. g4 {[%emt 0:03:25]} d5 {[%emt 0:10:30]} 13. g5 {[%emt 0:05:06]} Nh5 {[%emt 0:00:20]} 14. Be3 {[%emt 0:03:49]} dxe4 {[%emt 0:02:33]} 15. Bxb6 {[%emt 0:02:18]} cxb6 {[%emt 0:00:05]} 16. fxe4 {[%emt 0:03:10]} Qc7 {[%emt 0:06:02]} 17. Qd6 {[%emt 0:01:46]} Rac8 {[%emt 0:01:00]} 18. Qxc7 {[%emt 0:04:24]} Rxc7 {[%emt 0:00:08]} 19. Nd4 {[%emt 0:03:34]} Nf4 {[%emt 0:04:10]} 20. h4 {[%emt 0:03:50]} Ng6 {[%emt 0:06:09]} 21. h5 {[%emt 0:06:03]} Ne5 {[%emt 0:00:30]} 22. h6 {[%emt 0:00:43]} g6 {[%emt 0:04:14]} 23. Be2 {[%emt 0:04:48]} Re8 {[%emt 0:06:02]} 24. Rd2 {[%emt 0:02:48]} Bg4 {[%emt 0:04:51]} 25. Ndb5 {[%emt 0:04:31]} Rce7 {[%emt 0:01:25]} 26. Bxg4 {[%emt 0:07:18]} Nxg4 {[%emt 0:00:05]} 27. b3 {[%emt 0:00:16]} Ne5 {[%emt 0:01:55]} 28. Rf1 {[%emt 0:00:25]} Rc8 {[%emt 0:00:52]} 29. Kb2 {[%emt 0:01:40]} Rd7 {[%emt 0:00:33]} 30. Rxd7 {[%emt 0:01:46]} Nxd7 {[%emt 0:00:04]} 31. Nd6 {[%emt 0:00:07]} Rf8 {[%emt 0:00:09]} 32. Nd5 {[%emt 0:00:54]} Nc6 {[%emt 0:01:04]} 33. Nxb7 {[%emt 0:01:30]} Re8 {[%emt 0:00:15]} 34. Nd6 {[%emt 0:00:16]} Re6 {[%emt 0:00:29]} 35. Rxf7 {[%emt 0:01:05]} Rxd6 {[%emt 0:00:48]} 36. Rxd7 {[%emt 0:00:05]} Rxd7 {[%emt 0:00:06]} 37. Nf6+ {[%emt 0:00:04]} Kf7 {[%emt 0:00:09]} 38. Nxd7 {[%emt 0:00:03]} Nd8 {[%emt 0:01:27]} 39. Nxb6 {[%emt 0:03:06]} Ne6 {[%emt 0:00:05]} 40. Nc4 {[%emt 0:00:32]} Nxg5 {[%emt 0:00:06]} 41. Nxa5 {[%emt 0:00:05]} Nxe4 {[%emt 0:00:06]} 42. Nc4 {[%emt 0:00:03]} g5 {[%emt 0:00:06]} 43. a5 {[%emt 0:00:05]} g4 {[%emt 0:00:30]} 44. a6 {[%emt 0:00:24]} g3 {[%emt 0:00:03]} 45. Ne3 {[%emt 0:00:05]} 1-0

[Event "Panchenko Memorial-A 2021"]
[Site "Chelyabinsk"]
[Date "2021.09.21"]
[Round "10.9"]
[White "Sivuk, Vitaly"]
[Black "Lazavik, Denis"]
[Result "1/2-1/2"]
[ECO "A06"]
[WhiteElo "2552"]
[BlackElo "2440"]
[Annotator "ChessBase"]
[PlyCount "105"]
[EventDate "2021.09.13"]
[EventType "swiss"]
[EventCountry "RUS"]
[SourceTitle "playchess.com"]
[Source "ChessBase"]
[SourceQuality "1"]
[TimeControl "5400+30"]

1. Nf3 {[%emt 0:00:26]} d5 {[%emt 0:00:21]} 2. g3 {[%emt 0:00:08]} g6 {[%emt 0:00:50]} 3. Bg2 {[%emt 0:00:31]} Bg7 {[%emt 0:00:13]} 4. d4 {[%emt 0:00:15]} Nf6 {[%emt 0:00:22]} 5. O-O {[%emt 0:00:42]} O-O {[%emt 0:00:22]} 6. c3 {[%emt 0:01:25]} c6 {[%emt 0:15:24]} 7. Bf4 {[%emt 0:02:29]} Bf5 {[%emt 0:01:53]} 8. a4 {[%emt 0:03:04]} Qb6 {[%emt 0:03:23]} 9. Qc1 {[%emt 0:06:43]} a5 {[%emt 0:07:03]} 10. Nbd2 {[%emt 0:01:58]} Nbd7 {[%emt 0:03:04]} 11. Re1 {[%emt 0:01:59]} c5 {[%emt 0:06:44]} 12. Ra3 {[%emt 0:03:09]} Rac8 {[%emt 0:03:59]} 13. Nb3 {[%emt 0:04:13]} Ne4 {[%emt 0:07:42]} 14. Be3 {[%emt 0:03:30]} e5 {[%emt 0:02:38]} 15. dxc5 {[%emt 0:06:08]} Nexc5 {[%emt 0:05:21]} 16. Qd1 {[%emt 0:03:25]} Rfd8 {[%emt 0:02:28]} 17. Nfd2 {[%emt 0:17:53]} Be6 {[%emt 0:04:29]} 18. Nxc5 {[%emt 0:05:46]} Nxc5 {[%emt 0:00:19]} 19. Rb3 {[%emt 0:02:10]} Qc7 {[%emt 0:13:58]} 20. Bxc5 {[%emt 0:01:31]} Qxc5 {[%emt 0:00:06]} 21. Rxb7 {[%emt 0:00:55]} d4 {[%emt 0:01:44]} 22. Nb3 {[%emt 0:13:08]} Qc4 {[%emt 0:04:04]} 23. cxd4 {[%emt 0:00:17]} Qxa4 {[%emt 0:01:31]} 24. d5 {[%emt 0:00:15]} Bd7 {[%emt 0:03:19]} 25. Qd2 {[%emt 0:02:10]} e4 {[%emt 0:05:23]} 26. Ra1 {[%emt 0:08:59]} Qc4 {[%emt 0:00:09]} 27. Nxa5 {[%emt 0:00:13]} Qc2 {[%emt 0:00:16]} 28. Qxc2 {[%emt 0:02:06]} Rxc2 {[%emt 0:00:07]} 29. e3 {[%emt 0:02:45]} f5 {[%emt 0:02:14]} 30. Bf1 {[%emt 0:02:16]} Rxb2 {[%emt 0:00:52]} 31. Rxb2 {[%emt 0:00:21]} Bxb2 {[%emt 0:00:05]} 32. Rb1 {[%emt 0:00:52]} Bf6 {[%emt 0:00:43]} 33. Rb7 {[%emt 0:02:17]} Be8 {[%emt 0:00:36]} 34. Bc4 {[%emt 0:01:18]} Bf7 {[%emt 0:00:18]} 35. d6 {[%emt 0:00:40]} Bxc4 {[%emt 0:00:48]} 36. Nxc4 {[%emt 0:00:07]} Ra8 {[%emt 0:01:06]} 37. Rc7 {[%emt 0:00:47]} Ra1+ {[%emt 0:01:10]} 38. Kg2 {[%emt 0:00:04]} Rd1 {[%emt 0:00:09]} 39. d7 {[%emt 0:01:44]} Kf8 {[%emt 0:00:22]} 40. Rc8+ {[%emt 0:01:17]} Kg7 {[%emt 0:02:14]} 41. Nb6 {[%emt 0:00:30]} Kf7 {[%emt 0:00:26]} 42. h3 {[%emt 0:00:20]} h5 {[%emt 0:00:47]} 43. Rb8 {[%emt 0:00:21]} Rb1 {[%emt 0:00:38]} 44. h4 {[%emt 0:00:47]} Be7 {[%emt 0:01:01]} 45. f4 {[%emt 0:00:31]} Rd1 {[%emt 0:00:59]} 46. Kf2 {[%emt 0:00:23]} Ke6 {[%emt 0:00:48]} 47. Ke2 {[%emt 0:00:39]} Rd6 {[%emt 0:00:17]} 48. Kf1 {[%emt 0:00:30]} Rd1+ {[%emt 0:00:40]} 49. Kf2 {[%emt 0:00:05]} Rd2+ {[%emt 0:00:18]} 50. Ke1 {[%emt 0:00:05]} Rd3 {[%emt 0:00:35]} 51. Ke2 {[%emt 0:01:12]} Rd6 {[%emt 0:00:08]} 52. Re8 {[%emt 0:00:38]} Kf7 {[%emt 0:00:15]} 53. Rb8 {[%emt 0:00:28]} 1/2-1/2